NUMERO_MANDATO;RIGA_MANDATO;IMPORTO_RIGA;IMPORTO_MANDATO;BENEFICIARIO;CIG;TITOLO_PAGAMENTO;DATA_MANDATO;CAPITOLO;ARTICOLO;NUMERO_IMPEGNO;TITOLO;DESCR_TITOLO;LIVELLO_II;DESCR_LIVELLO_II;LIVELLO_III;DESCR_LIVELLO_III;LIVELLO_IV;DESCR_LIVELLO_IV;LIVELLO_V;DESCR_LIVELLO_V;DATA_PAG_EFF;
227;1;"1.903,20";"1.903,20";RUSCITTO MARIACARMELA; ;SALDO Fatt.n. 1/E/2017  del 22/06/2017;03-07-2017;1010;0;36;1;Spese correnti;3;Acquisto di beni e servizi;2;Acquisto di servizi;1;Organi e incarichi istituzionali dell'amministrazione;8;"Compensi agli organi istituzionali di revisione, di controllo ed altri incarichi istituzionali dell'amministrazione";2017-07-03;
228;1;"4.000,00";"5.080,92";DE VINCENZI PIERINO;Z311CC8FCA;SALDO Fatt.n. 18/E  del 21/12/2016 Fattura;03-07-2017;1031;0;34;1;Spese correnti;3;Acquisto di beni e servizi;2;Acquisto di servizi;99;Altri servizi;999;Altri servizi diversi n.a.c.;2017-07-03;
228;2;"1.080,92";"5.080,92";FLORIO DOMENICO;Z4E1CC8FCA;SALDO Fatt.n. 01/01  del 12/09/2016;03-07-2017;1031;0;34;1;Spese correnti;3;Acquisto di beni e servizi;2;Acquisto di servizi;99;Altri servizi;999;Altri servizi diversi n.a.c.;2017-07-03;
229;1;"11.063,84";"11.063,84";IADANZA ALFREDO;ZB91F319A5;SALDO Fatt.n. 1  del 23/01/2017 Tribunale Ordinario - Campobasso - RG 739/2015 - Determinazioni avverso revoca finanziamento POR;03-07-2017;1058;0;35;1;Spese correnti;3;Acquisto di beni e servizi;2;Acquisto di servizi;99;Altri servizi;2;Altre spese legali;2017-07-03;
233;1;"128,34";"414,68";ENEL PRODUZIONE; ;SERVIZIO ELETTRICO NAZIONALE REGOLARIZZAZIONE SOSPESI;03-07-2017;1031;0;0;1;Spese correnti;3;Acquisto di beni e servizi;2;Acquisto di servizi;99;Altri servizi;999;Altri servizi diversi n.a.c.;2017-07-03;
233;2;"141,01";"414,68";ENEL PRODUZIONE; ;SERVIZIO ELETTRICO NAZIONALE REGOLARIZZAZIONE SOSPESI;03-07-2017;1031;0;0;1;Spese correnti;3;Acquisto di beni e servizi;2;Acquisto di servizi;99;Altri servizi;999;Altri servizi diversi n.a.c.;2017-07-03;
233;3;"145,33";"414,68";ENEL PRODUZIONE; ;SERVIZIO ELETTRICO NAZIONALE REGOLARIZZAZIONE SOSPESI;03-07-2017;1031;0;0;1;Spese correnti;3;Acquisto di beni e servizi;2;Acquisto di servizi;99;Altri servizi;999;Altri servizi diversi n.a.c.;2017-07-03;
234;1;"0,19";"379,18";BANCA DI CREDITO CCOPERATIVO DI CASTEL DI SANGRO; ;SPESE POSTALI;03-07-2017;1043;2;0;1;Spese correnti;3;Acquisto di beni e servizi;2;Acquisto di servizi;16;Servizi amministrativi;2;Spese postali;2017-07-03;
234;2;"1,50";"379,18";BANCA DI CREDITO CCOPERATIVO DI CASTEL DI SANGRO; ;SPESE POSTALI;03-07-2017;1043;2;0;1;Spese correnti;3;Acquisto di beni e servizi;2;Acquisto di servizi;16;Servizi amministrativi;2;Spese postali;2017-07-03;
234;3;"377,49";"379,18";BANCA DI CREDITO CCOPERATIVO DI CASTEL DI SANGRO; ;SPESE POSTALI;03-07-2017;1043;2;0;1;Spese correnti;3;Acquisto di beni e servizi;2;Acquisto di servizi;16;Servizi amministrativi;2;Spese postali;2017-07-03;
235;1;"4.048,23";"4.048,23";CASSA DEPOSITI E PRESTITI; ;RIMBORSO ANTICIPAZIONE DI LIQUIDITA';03-07-2017;2162;0;0;1;Spese correnti;7;Interessi passivi;5;Interessi su Mutui e altri finanziamenti a medio lungo termine;2;Interessi passivi a Amministrazioni Locali su mutui e altri finanziamenti a medio lungo termine;3;Interessi passivi a Comuni su mutui e altri finanziamenti a medio lungo termine;2017-07-03;
236;1;"323,35";"7.784,67";CASSA DEPOSITI E PRESTITI; ;INTERESSI PASSIVI PRIMO SEMESTRE;03-07-2017;1941;0;0;1;Spese correnti;7;Interessi passivi;5;Interessi su Mutui e altri finanziamenti a medio lungo termine;4;Interessi passivi su finanziamenti a medio lungo termine a Imprese;3;Interessi passivi a Cassa Depositi e Prestiti SPA su mutui e altri finanziamenti a medio lungo termine;2017-07-03;
236;2;"7.461,32";"7.784,67";CASSA DEPOSITI E PRESTITI; ;INTERESSI PASSIVI PRIMO SEMESTRE;03-07-2017;1941;0;0;1;Spese correnti;7;Interessi passivi;5;Interessi su Mutui e altri finanziamenti a medio lungo termine;4;Interessi passivi su finanziamenti a medio lungo termine a Imprese;3;Interessi passivi a Cassa Depositi e Prestiti SPA su mutui e altri finanziamenti a medio lungo termine;2017-07-03;
239;1;"500,00";"500,00";CASSA DEPOSITI E PRESTITI; ;ANTICIPAZIONE DI LIQUIDITA';03-07-2017;2162;0;0;1;Spese correnti;7;Interessi passivi;5;Interessi su Mutui e altri finanziamenti a medio lungo termine;2;Interessi passivi a Amministrazioni Locali su mutui e altri finanziamenti a medio lungo termine;3;Interessi passivi a Comuni su mutui e altri finanziamenti a medio lungo termine;2017-07-03;
240;1;"100,00";"100,00";CASSA DEPOSITI E PRESTITI; ;INTERESSI ANTICIPAZIONE DI LIQUIDITA' SALDO;03-07-2017;2161;0;0;1;Spese correnti;7;Interessi passivi;6;Altri interessi passivi;4;Interessi passivi su anticipazioni di tesoreria degli istituti tesorieri/cassieri;1;Interessi passivi su anticipazioni di tesoreria degli istituti tesorieri/cassieri;2017-07-03;
242;1;"1.162,03";"1.162,03";PERSONALE DIVERSO; ;STIPENDI MESE DI: LUGLIO 17;10-07-2017;1001;0;0;1;Spese correnti;3;Acquisto di beni e servizi;2;Acquisto di servizi;1;Organi e incarichi istituzionali dell'amministrazione;1;Organi istituzionali dell'amministrazione - Indennit�;2017-07-10;
258;1;"8,30";"5.227,84";ENEL ENERGIA S.P.A. SOCIETA' CON UNICO SOCIO;66821951C2;SALDO Fatt.n. 004800870133  del 20/06/2017;31-07-2017;1031;0;37;1;Spese correnti;3;Acquisto di beni e servizi;2;Acquisto di servizi;99;Altri servizi;999;Altri servizi diversi n.a.c.;2017-07-31;
258;2;"8,71";"5.227,84";ENEL ENERGIA S.P.A. SOCIETA' CON UNICO SOCIO;66821951C2;SALDO Fatt.n. 004800870128  del 20/06/2017;31-07-2017;1031;0;37;1;Spese correnti;3;Acquisto di beni e servizi;2;Acquisto di servizi;99;Altri servizi;999;Altri servizi diversi n.a.c.;2017-07-31;
258;3;"13,46";"5.227,84";ENEL ENERGIA S.P.A. SOCIETA' CON UNICO SOCIO;66821951C2;SALDO Fatt.n. 004800870134  del 20/06/2017;31-07-2017;1031;0;37;1;Spese correnti;3;Acquisto di beni e servizi;2;Acquisto di servizi;99;Altri servizi;999;Altri servizi diversi n.a.c.;2017-07-31;
258;4;"16,01";"5.227,84";ENEL ENERGIA S.P.A. SOCIETA' CON UNICO SOCIO;66821951C2;SALDO Fatt.n. 004800870132  del 20/06/2017;31-07-2017;1031;0;37;1;Spese correnti;3;Acquisto di beni e servizi;2;Acquisto di servizi;99;Altri servizi;999;Altri servizi diversi n.a.c.;2017-07-31;
258;5;"35,60";"5.227,84";ENEL ENERGIA S.P.A. SOCIETA' CON UNICO SOCIO;66821951C2;SALDO Fatt.n. 004800870127  del 20/06/2017;31-07-2017;1031;0;37;1;Spese correnti;3;Acquisto di beni e servizi;2;Acquisto di servizi;99;Altri servizi;999;Altri servizi diversi n.a.c.;2017-07-31;
258;6;"35,79";"5.227,84";ENEL ENERGIA S.P.A. SOCIETA' CON UNICO SOCIO;66821951C2;SALDO Fatt.n. 004800870130  del 20/06/2017;31-07-2017;1031;0;37;1;Spese correnti;3;Acquisto di beni e servizi;2;Acquisto di servizi;99;Altri servizi;999;Altri servizi diversi n.a.c.;2017-07-31;
258;7;"37,00";"5.227,84";ENEL ENERGIA S.P.A. SOCIETA' CON UNICO SOCIO;ZDF144F621;SALDO Fatt.n. 004800870117  del 20/06/2017;31-07-2017;1031;0;37;1;Spese correnti;3;Acquisto di beni e servizi;2;Acquisto di servizi;99;Altri servizi;999;Altri servizi diversi n.a.c.;2017-07-31;
258;8;"47,63";"5.227,84";ENEL ENERGIA S.P.A. SOCIETA' CON UNICO SOCIO;ZDF144F621;SALDO Fatt.n. 004800870239  del 20/06/2017;31-07-2017;1031;0;37;1;Spese correnti;3;Acquisto di beni e servizi;2;Acquisto di servizi;99;Altri servizi;999;Altri servizi diversi n.a.c.;2017-07-31;
258;9;"50,98";"5.227,84";ENEL ENERGIA S.P.A. SOCIETA' CON UNICO SOCIO;ZDF144F621;SALDO Fatt.n. 004800870116  del 20/06/2017;31-07-2017;1031;0;37;1;Spese correnti;3;Acquisto di beni e servizi;2;Acquisto di servizi;99;Altri servizi;999;Altri servizi diversi n.a.c.;2017-07-31;
258;10;"57,27";"5.227,84";ENEL ENERGIA S.P.A. SOCIETA' CON UNICO SOCIO;66821951C2;SALDO Fatt.n. 004800870129  del 20/06/2017;31-07-2017;1031;0;37;1;Spese correnti;3;Acquisto di beni e servizi;2;Acquisto di servizi;99;Altri servizi;999;Altri servizi diversi n.a.c.;2017-07-31;
258;11;"58,82";"5.227,84";ENEL ENERGIA S.P.A. SOCIETA' CON UNICO SOCIO;ZDF144F621;SALDO Fatt.n. 004800870114  del 20/06/2017;31-07-2017;1031;0;37;1;Spese correnti;3;Acquisto di beni e servizi;2;Acquisto di servizi;99;Altri servizi;999;Altri servizi diversi n.a.c.;2017-07-31;
258;12;"90,99";"5.227,84";ENEL ENERGIA S.P.A. SOCIETA' CON UNICO SOCIO;ZDF144F621;SALDO Fatt.n. 004800870115  del 20/06/2017;31-07-2017;1031;0;37;1;Spese correnti;3;Acquisto di beni e servizi;2;Acquisto di servizi;99;Altri servizi;999;Altri servizi diversi n.a.c.;2017-07-31;
258;13;"99,10";"5.227,84";ENEL ENERGIA S.P.A. SOCIETA' CON UNICO SOCIO;66821951C2;SALDO Fatt.n. 004800870126  del 20/06/2017;31-07-2017;1031;0;37;1;Spese correnti;3;Acquisto di beni e servizi;2;Acquisto di servizi;99;Altri servizi;999;Altri servizi diversi n.a.c.;2017-07-31;
258;14;"158,00";"5.227,84";ENEL ENERGIA S.P.A. SOCIETA' CON UNICO SOCIO;ZDF144F621;SALDO Fatt.n. 004800997663  del 12/07/2017;31-07-2017;1031;0;37;1;Spese correnti;3;Acquisto di beni e servizi;2;Acquisto di servizi;99;Altri servizi;999;Altri servizi diversi n.a.c.;2017-07-31;
258;15;"163,11";"5.227,84";ENEL ENERGIA S.P.A. SOCIETA' CON UNICO SOCIO;ZDF144F621;SALDO Fatt.n. 004800870240  del 20/06/2017;31-07-2017;1031;0;37;1;Spese correnti;3;Acquisto di beni e servizi;2;Acquisto di servizi;99;Altri servizi;999;Altri servizi diversi n.a.c.;2017-07-31;
258;16;"201,62";"5.227,84";ENEL ENERGIA S.P.A. SOCIETA' CON UNICO SOCIO;ZDF144F621;SALDO Fatt.n. 004800870118  del 20/06/2017;31-07-2017;1031;0;37;1;Spese correnti;3;Acquisto di beni e servizi;2;Acquisto di servizi;99;Altri servizi;999;Altri servizi diversi n.a.c.;2017-07-31;
258;17;"242,46";"5.227,84";ENEL ENERGIA S.P.A. SOCIETA' CON UNICO SOCIO;66821951C2;SALDO Fatt.n. 004800954672  del 11/07/2017;31-07-2017;1031;0;37;1;Spese correnti;3;Acquisto di beni e servizi;2;Acquisto di servizi;99;Altri servizi;999;Altri servizi diversi n.a.c.;2017-07-31;
258;18;"627,25";"5.227,84";ENEL ENERGIA S.P.A. SOCIETA' CON UNICO SOCIO;ZDF144F621;SALDO Fatt.n. 004800870120  del 20/06/2017;31-07-2017;1031;0;37;1;Spese correnti;3;Acquisto di beni e servizi;2;Acquisto di servizi;99;Altri servizi;999;Altri servizi diversi n.a.c.;2017-07-31;
258;19;"808,38";"5.227,84";ENEL ENERGIA S.P.A. SOCIETA' CON UNICO SOCIO;ZDF144F621;SALDO Fatt.n. 004800870914  del 20/06/2017;31-07-2017;1031;0;37;1;Spese correnti;3;Acquisto di beni e servizi;2;Acquisto di servizi;99;Altri servizi;999;Altri servizi diversi n.a.c.;2017-07-31;
258;20;"0,44";"5.227,84";METANIA SRL; ;SALDO Fatt.n. 2228/EA  del 24/07/2017 Periodo di fornitura GIUGNO 2017 - C.C. 56015473/001 - SERVIZIO ENERGIA ELETTRICA - POD/PDR IT001E60293200;31-07-2017;1031;0;37;1;Spese correnti;3;Acquisto di beni e servizi;2;Acquisto di servizi;99;Altri servizi;999;Altri servizi diversi n.a.c.;2017-07-31;
258;21;"7,98";"5.227,84";METANIA SRL; ;SALDO Fatt.n. 2231/EA  del 24/07/2017 Periodo di fornitura GIUGNO 2017 - C.C. 56015477/001 - SERVIZIO ENERGIA ELETTRICA - POD/PDR IT001E60293225;31-07-2017;1031;0;37;1;Spese correnti;3;Acquisto di beni e servizi;2;Acquisto di servizi;99;Altri servizi;999;Altri servizi diversi n.a.c.;2017-07-31;
258;22;"9,65";"5.227,84";METANIA SRL; ;SALDO Fatt.n. 2238/EA  del 24/07/2017 Periodo di fornitura GIUGNO 2017 - C.C. 56015484/001 - SERVIZIO ENERGIA ELETTRICA - POD/PDR IT001E61721456;31-07-2017;1031;0;37;1;Spese correnti;3;Acquisto di beni e servizi;2;Acquisto di servizi;99;Altri servizi;999;Altri servizi diversi n.a.c.;2017-07-31;
258;23;"10,92";"5.227,84";METANIA SRL; ;SALDO Fatt.n. 2229/EA  del 24/07/2017 Periodo di fornitura GIUGNO 2017 - C.C. 56015474/001 - SERVIZIO ENERGIA ELETTRICA - POD/PDR IT001E60293216;31-07-2017;1031;0;37;1;Spese correnti;3;Acquisto di beni e servizi;2;Acquisto di servizi;99;Altri servizi;999;Altri servizi diversi n.a.c.;2017-07-31;
258;24;"14,77";"5.227,84";METANIA SRL; ;SALDO Fatt.n. 2232/EA  del 24/07/2017 Periodo di fornitura GIUGNO 2017 - C.C. 56015478/001 - SERVIZIO ENERGIA ELETTRICA - POD/PDR IT001E60293232;31-07-2017;1031;0;37;1;Spese correnti;3;Acquisto di beni e servizi;2;Acquisto di servizi;99;Altri servizi;999;Altri servizi diversi n.a.c.;2017-07-31;
258;25;"36,76";"5.227,84";METANIA SRL; ;SALDO Fatt.n. 2230/EA  del 24/07/2017 Periodo di fornitura GIUGNO 2017 - C.C. 56015475/001 - SERVIZIO ENERGIA ELETTRICA - POD/PDR IT001E69533899;31-07-2017;1031;0;37;1;Spese correnti;3;Acquisto di beni e servizi;2;Acquisto di servizi;99;Altri servizi;999;Altri servizi diversi n.a.c.;2017-07-31;
258;26;"45,68";"5.227,84";METANIA SRL; ;SALDO Fatt.n. 2234/EA  del 24/07/2017 Periodo di fornitura GIUGNO 2017 - C.C. 56015480/001 - SERVIZIO ENERGIA ELETTRICA - POD/PDR IT001E69560810;31-07-2017;1031;0;37;1;Spese correnti;3;Acquisto di beni e servizi;2;Acquisto di servizi;99;Altri servizi;999;Altri servizi diversi n.a.c.;2017-07-31;
258;27;"47,19";"5.227,84";METANIA SRL; ;SALDO Fatt.n. 2239/EA  del 24/07/2017 Periodo di fornitura GIUGNO 2017 - C.C. 56015485/001 - SERVIZIO ENERGIA ELETTRICA - POD/PDR IT001E69541708;31-07-2017;1031;0;37;1;Spese correnti;3;Acquisto di beni e servizi;2;Acquisto di servizi;99;Altri servizi;999;Altri servizi diversi n.a.c.;2017-07-31;
258;28;"47,40";"5.227,84";METANIA SRL; ;SALDO Fatt.n. 2244/EA  del 24/07/2017 Periodo di fornitura GIUGNO 2017 - C.C. 56015490/001 - SERVIZIO ENERGIA ELETTRICA - POD/PDR IT001E69560631;31-07-2017;1031;0;37;1;Spese correnti;3;Acquisto di beni e servizi;2;Acquisto di servizi;99;Altri servizi;999;Altri servizi diversi n.a.c.;2017-07-31;
258;29;"50,61";"5.227,84";METANIA SRL; ;SALDO Fatt.n. 2237/EA  del 24/07/2017 Periodo di fornitura GIUGNO 2017 - C.C. 56015483/001 - SERVIZIO ENERGIA ELETTRICA - POD/PDR IT001E69560536;31-07-2017;1031;0;37;1;Spese correnti;3;Acquisto di beni e servizi;2;Acquisto di servizi;99;Altri servizi;999;Altri servizi diversi n.a.c.;2017-07-31;
258;30;"56,74";"5.227,84";METANIA SRL; ;SALDO Fatt.n. 2236/EA  del 24/07/2017 Periodo di fornitura GIUGNO 2017 - C.C. 56015482/001 - SERVIZIO ENERGIA ELETTRICA - POD/PDR IT001E69560893;31-07-2017;1031;0;37;1;Spese correnti;3;Acquisto di beni e servizi;2;Acquisto di servizi;99;Altri servizi;999;Altri servizi diversi n.a.c.;2017-07-31;
258;31;"65,01";"5.227,84";METANIA SRL; ;SALDO Fatt.n. 2233/EA  del 24/07/2017 Periodo di fornitura GIUGNO 2017 - C.C. 56015479/001 - SERVIZIO ENERGIA ELETTRICA - POD/PDR IT001E69560852;31-07-2017;1031;0;37;1;Spese correnti;3;Acquisto di beni e servizi;2;Acquisto di servizi;99;Altri servizi;999;Altri servizi diversi n.a.c.;2017-07-31;
258;32;"79,19";"5.227,84";METANIA SRL; ;SALDO Fatt.n. 2227/EA  del 24/07/2017 Periodo di fornitura GIUGNO 2017 - C.C. 56015472/001 - SERVIZIO ENERGIA ELETTRICA - POD/PDR IT001E69541709;31-07-2017;1031;0;37;1;Spese correnti;3;Acquisto di beni e servizi;2;Acquisto di servizi;99;Altri servizi;999;Altri servizi diversi n.a.c.;2017-07-31;
258;33;"149,06";"5.227,84";METANIA SRL; ;SALDO Fatt.n. 2243/EA  del 24/07/2017 Periodo di fornitura GIUGNO 2017 - C.C. 56015489/001 - SERVIZIO ENERGIA ELETTRICA - POD/PDR IT001E69560630;31-07-2017;1031;0;37;1;Spese correnti;3;Acquisto di beni e servizi;2;Acquisto di servizi;99;Altri servizi;999;Altri servizi diversi n.a.c.;2017-07-31;
258;34;"170,32";"5.227,84";METANIA SRL; ;SALDO Fatt.n. 2240/EA  del 24/07/2017 Periodo di fornitura GIUGNO 2017 - C.C. 56015486/001 - SERVIZIO ENERGIA ELETTRICA - POD/PDR IT001E69560721;31-07-2017;1031;0;37;1;Spese correnti;3;Acquisto di beni e servizi;2;Acquisto di servizi;99;Altri servizi;999;Altri servizi diversi n.a.c.;2017-07-31;
258;35;"184,12";"5.227,84";METANIA SRL; ;SALDO Fatt.n. 2241/EA  del 24/07/2017 Periodo di fornitura GIUGNO 2017 - C.C. 56015487/001 - SERVIZIO ENERGIA ELETTRICA - POD/PDR IT001E69560830;31-07-2017;1031;0;37;1;Spese correnti;3;Acquisto di beni e servizi;2;Acquisto di servizi;99;Altri servizi;999;Altri servizi diversi n.a.c.;2017-07-31;
258;36;"557,34";"5.227,84";METANIA SRL; ;SALDO Fatt.n. 2235/EA  del 24/07/2017 Periodo di fornitura GIUGNO 2017 - C.C. 56015481/001 - SERVIZIO ENERGIA ELETTRICA - POD/PDR IT001E04111889;31-07-2017;1031;0;37;1;Spese correnti;3;Acquisto di beni e servizi;2;Acquisto di servizi;99;Altri servizi;999;Altri servizi diversi n.a.c.;2017-07-31;
258;37;"679,41";"5.227,84";METANIA SRL; ;SALDO Fatt.n. 2242/EA  del 24/07/2017 Periodo di fornitura GIUGNO 2017 - C.C. 56015488/001 - SERVIZIO ENERGIA ELETTRICA - POD/PDR IT001E69560644;31-07-2017;1031;0;37;1;Spese correnti;3;Acquisto di beni e servizi;2;Acquisto di servizi;99;Altri servizi;999;Altri servizi diversi n.a.c.;2017-07-31;
258;38;"93,66";"5.227,84";TELECOM ITALIA S.p.a.; ;SALDO Fatt.n. 8P00166912  del 10/07/2017 4BIM 2017;31-07-2017;1031;0;37;1;Spese correnti;3;Acquisto di beni e servizi;2;Acquisto di servizi;99;Altri servizi;999;Altri servizi diversi n.a.c.;2017-07-31;
258;39;"161,11";"5.227,84";TELECOM ITALIA S.p.a.; ;SALDO Fatt.n. 8P00167866  del 10/07/2017 4BIM 2017;31-07-2017;1031;0;37;1;Spese correnti;3;Acquisto di beni e servizi;2;Acquisto di servizi;99;Altri servizi;999;Altri servizi diversi n.a.c.;2017-07-31;
259;1;"0,01";"800,00";LI FRAINI ALBERTO;Z0B1C5EE29;SALDO Fatt.n. 08/E  del 26/07/2017 SERVIZIO DI MANUTENZIONE DEL CIMITERO COMUNALE;31-07-2017;1888;0;39;1;Spese correnti;3;Acquisto di beni e servizi;2;Acquisto di servizi;9;Manutenzione ordinaria e riparazioni;8;Manutenzione ordinaria e riparazioni di beni immobili;2017-07-31;
259;2;"799,99";"800,00";LI FRAINI ALBERTO;Z0B1C5EE29;ACCONTO Fatt.n. 08/E  del 26/07/2017 SERVIZIO DI MANUTENZIONE DEL CIMITERO COMUNALE;31-07-2017;1888;0;39;1;Spese correnti;3;Acquisto di beni e servizi;2;Acquisto di servizi;9;Manutenzione ordinaria e riparazioni;8;Manutenzione ordinaria e riparazioni di beni immobili;2017-07-31;
260;1;"566,96";"566,96";XFUEL SRL;Z7311F8D37;SALDO Fatt.n. VP17  del 31/05/2017 BUONO DI CONSEGNA;31-07-2017;1056;0;40;1;Spese correnti;3;Acquisto di beni e servizi;1;Acquisto di beni;2;Altri beni di consumo;7;Altri materiali tecnico-specialistici non sanitari;2017-07-31;
261;1;"90,00";"297,95";XFUEL SRL;Z7311F8D37;SALDO Fatt.n. VP16  del 31/05/2017 BUONO DI CONSEGNA;31-07-2017;1031;0;42;1;Spese correnti;3;Acquisto di beni e servizi;2;Acquisto di servizi;99;Altri servizi;999;Altri servizi diversi n.a.c.;2017-07-31;
261;2;"207,95";"297,95";XFUEL SRL;Z7311F8D37;SALDO Fatt.n. VP33  del 30/06/2017 BUONO CONSEGNA CONTABILE;31-07-2017;1031;0;42;1;Spese correnti;3;Acquisto di beni e servizi;2;Acquisto di servizi;99;Altri servizi;999;Altri servizi diversi n.a.c.;2017-07-31;
262;1;"900,00";"8.542,76";ECODEPURA SRL;Z850EAAADA;SALDO Fatt.n. 131  del 30/06/2017;31-07-2017;1031;0;38;1;Spese correnti;3;Acquisto di beni e servizi;2;Acquisto di servizi;99;Altri servizi;999;Altri servizi diversi n.a.c.;2017-07-31;
262;2;"3.511,66";"8.542,76";ECODEPURA SRL;5186888362;SALDO Fatt.n. 132  del 30/06/2017;31-07-2017;1031;0;38;1;Spese correnti;3;Acquisto di beni e servizi;2;Acquisto di servizi;99;Altri servizi;999;Altri servizi diversi n.a.c.;2017-07-31;
262;3;"1.399,48";"8.542,76";MOLISE ACQUE AZIENDA SPECIALE REGIONALE; ;SALDO Fatt.n. FE-174  del 28/04/2017;31-07-2017;1031;0;38;1;Spese correnti;3;Acquisto di beni e servizi;2;Acquisto di servizi;99;Altri servizi;999;Altri servizi diversi n.a.c.;2017-07-31;
262;4;"2.731,62";"8.542,76";MOLISE ACQUE AZIENDA SPECIALE REGIONALE; ;SALDO Fatt.n. FE-80  del 08/03/2017;31-07-2017;1031;0;38;1;Spese correnti;3;Acquisto di beni e servizi;2;Acquisto di servizi;99;Altri servizi;999;Altri servizi diversi n.a.c.;2017-07-31;
263;1;"2.621,33";"7.898,11";SMALTIMENTI SUD S.R.L.;5018100;SALDO Fatt.n. A000336  del 31/05/2017;31-07-2017;1742;0;41;1;Spese correnti;3;Acquisto di beni e servizi;2;Acquisto di servizi;15;Contratti di servizio pubblico;5;Contratti di servizio per il conferimento in discarica dei rifiuti;2017-07-31;
263;2;"2.627,31";"7.898,11";SMALTIMENTI SUD S.R.L.;5018100;SALDO Fatt.n. A000253  del 30/04/2017;31-07-2017;1742;0;41;1;Spese correnti;3;Acquisto di beni e servizi;2;Acquisto di servizi;15;Contratti di servizio pubblico;5;Contratti di servizio per il conferimento in discarica dei rifiuti;2017-07-31;
263;3;"2.649,47";"7.898,11";SMALTIMENTI SUD S.R.L.;5018100;SALDO Fatt.n. A000415  del 30/06/2017;31-07-2017;1742;0;41;1;Spese correnti;3;Acquisto di beni e servizi;2;Acquisto di servizi;15;Contratti di servizio pubblico;5;Contratti di servizio per il conferimento in discarica dei rifiuti;2017-07-31;
264;1;"-79,30";"555,10";C.T.S. COPISTERIA DI CENCI TONINA & C S.A.S.; ;SALDO Fatt.n. 4/NE  del 28/02/2017 RESO DA CLIENTE;28-08-2017;1043;6;44;1;Spese correnti;3;Acquisto di beni e servizi;2;Acquisto di servizi;7;Utilizzo di beni di terzi;4;Noleggi di hardware;2017-08-28;
264;2;"-79,30";"555,10";C.T.S. COPISTERIA DI CENCI TONINA & C S.A.S.; ;SALDO Fatt.n. 3/NE  del 28/02/2017 RESO DA CLIENTE;28-08-2017;1043;6;44;1;Spese correnti;3;Acquisto di beni e servizi;2;Acquisto di servizi;7;Utilizzo di beni di terzi;4;Noleggi di hardware;2017-08-28;
264;3;"-79,30";"555,10";C.T.S. COPISTERIA DI CENCI TONINA & C S.A.S.; ;SALDO Fatt.n. 5/NE  del 31/07/2017 RESO DA CLIENTE;28-08-2017;1043;6;44;1;Spese correnti;3;Acquisto di beni e servizi;2;Acquisto di servizi;7;Utilizzo di beni di terzi;4;Noleggi di hardware;2017-08-28;
264;4;"79,30";"555,10";C.T.S. COPISTERIA DI CENCI TONINA & C S.A.S.; ;SALDO Fatt.n. 17  del 28/02/2017 VENDITA;28-08-2017;1043;6;44;1;Spese correnti;3;Acquisto di beni e servizi;2;Acquisto di servizi;7;Utilizzo di beni di terzi;4;Noleggi di hardware;2017-08-28;
264;5;"79,30";"555,10";C.T.S. COPISTERIA DI CENCI TONINA & C S.A.S.; ;SALDO Fatt.n. 3  del 25/01/2017 VENDITA;28-08-2017;1043;6;44;1;Spese correnti;3;Acquisto di beni e servizi;2;Acquisto di servizi;7;Utilizzo di beni di terzi;4;Noleggi di hardware;2017-08-28;
264;6;"79,30";"555,10";C.T.S. COPISTERIA DI CENCI TONINA & C S.A.S.; ;SALDO Fatt.n. 18  del 28/02/2017 VENDITA;28-08-2017;1043;6;44;1;Spese correnti;3;Acquisto di beni e servizi;2;Acquisto di servizi;7;Utilizzo di beni di terzi;4;Noleggi di hardware;2017-08-28;
264;7;"79,30";"555,10";C.T.S. COPISTERIA DI CENCI TONINA & C S.A.S.; ;SALDO Fatt.n. 37  del 27/03/2017 VENDITA;28-08-2017;1043;6;44;1;Spese correnti;3;Acquisto di beni e servizi;2;Acquisto di servizi;7;Utilizzo di beni di terzi;4;Noleggi di hardware;2017-08-28;
264;8;"79,30";"555,10";C.T.S. COPISTERIA DI CENCI TONINA & C S.A.S.; ;SALDO Fatt.n. 46  del 19/04/2017 VENDITA;28-08-2017;1043;6;44;1;Spese correnti;3;Acquisto di beni e servizi;2;Acquisto di servizi;7;Utilizzo di beni di terzi;4;Noleggi di hardware;2017-08-28;
264;9;"79,30";"555,10";C.T.S. COPISTERIA DI CENCI TONINA & C S.A.S.; ;SALDO Fatt.n. 47  del 28/04/2017 VENDITA;28-08-2017;1043;6;44;1;Spese correnti;3;Acquisto di beni e servizi;2;Acquisto di servizi;7;Utilizzo di beni di terzi;4;Noleggi di hardware;2017-08-28;
264;10;"79,30";"555,10";C.T.S. COPISTERIA DI CENCI TONINA & C S.A.S.; ;SALDO Fatt.n. 60  del 30/05/2017 VENDITA;28-08-2017;1043;6;44;1;Spese correnti;3;Acquisto di beni e servizi;2;Acquisto di servizi;7;Utilizzo di beni di terzi;4;Noleggi di hardware;2017-08-28;
264;11;"79,30";"555,10";C.T.S. COPISTERIA DI CENCI TONINA & C S.A.S.; ;SALDO Fatt.n. 73  del 30/06/2017 VENDITA;28-08-2017;1043;6;44;1;Spese correnti;3;Acquisto di beni e servizi;2;Acquisto di servizi;7;Utilizzo di beni di terzi;4;Noleggi di hardware;2017-08-28;
264;12;"158,60";"555,10";C.T.S. COPISTERIA DI CENCI TONINA & C S.A.S.; ;SALDO Fatt.n. 87  del 31/07/2017 VENDITA;28-08-2017;1043;6;44;1;Spese correnti;3;Acquisto di beni e servizi;2;Acquisto di servizi;7;Utilizzo di beni di terzi;4;Noleggi di hardware;2017-08-28;
265;1;"-119,73";"569,17";METANIA SRL;Z831E334DA;SALDO Fatt.n. 1073/GA  del 28/07/2017 Periodo di fornitura GIUGNO 2017 - C.C. 56013286/113 - SERVIZIO GAS - POD/PDR 09060000005061;28-08-2017;1034;0;4;1;Spese correnti;3;Acquisto di beni e servizi;2;Acquisto di servizi;5;Utenze e canoni;1;Telefonia fissa;2017-08-28;
265;2;"-2,78";"569,17";METANIA SRL;Z831E334DA;SALDO Fatt.n. 1074/GA  del 28/07/2017 Periodo di fornitura GIUGNO 2017 - C.C. 56013287/113 - SERVIZIO GAS - POD/PDR 09060000005062;28-08-2017;1034;0;4;1;Spese correnti;3;Acquisto di beni e servizi;2;Acquisto di servizi;5;Utenze e canoni;1;Telefonia fissa;2017-08-28;
265;3;"6,39";"569,17";METANIA SRL;Z831E334DA;SALDO Fatt.n. 1075/GA  del 28/07/2017 Periodo di fornitura GIUGNO 2017 - C.C. 56013288/113 - SERVIZIO GAS - POD/PDR 09060000005102;28-08-2017;1034;0;4;1;Spese correnti;3;Acquisto di beni e servizi;2;Acquisto di servizi;5;Utenze e canoni;1;Telefonia fissa;2017-08-28;
265;4;"7,08";"569,17";METANIA SRL;Z831E334DA;SALDO Fatt.n. 1076/GA  del 28/07/2017 Periodo di fornitura GIUGNO 2017 - C.C. 56013289/113 - SERVIZIO GAS - POD/PDR 09060000005122;28-08-2017;1034;0;4;1;Spese correnti;3;Acquisto di beni e servizi;2;Acquisto di servizi;5;Utenze e canoni;1;Telefonia fissa;2017-08-28;
265;5;"13,70";"569,17";METANIA SRL;Z831E334DA;SALDO Fatt.n. 875/GA  del 30/06/2017 Periodo di fornitura MAGGIO 2017 - C.C. 56013289/113 - SERVIZIO GAS - POD/PDR 09060000005122;28-08-2017;1034;0;4;1;Spese correnti;3;Acquisto di beni e servizi;2;Acquisto di servizi;5;Utenze e canoni;1;Telefonia fissa;2017-08-28;
265;6;"23,56";"569,17";METANIA SRL;Z831E334DA;SALDO Fatt.n. 873/GA  del 30/06/2017 Periodo di fornitura MAGGIO 2017 - C.C. 56013287/113 - SERVIZIO GAS - POD/PDR 09060000005062;28-08-2017;1034;0;4;1;Spese correnti;3;Acquisto di beni e servizi;2;Acquisto di servizi;5;Utenze e canoni;1;Telefonia fissa;2017-08-28;
265;7;"89,72";"569,17";METANIA SRL;Z831E334DA;SALDO Fatt.n. 874/GA  del 30/06/2017 Periodo di fornitura MAGGIO 2017 - C.C. 56013288/113 - SERVIZIO GAS - POD/PDR 09060000005102;28-08-2017;1034;0;4;1;Spese correnti;3;Acquisto di beni e servizi;2;Acquisto di servizi;5;Utenze e canoni;1;Telefonia fissa;2017-08-28;
265;8;"161,91";"569,17";METANIA SRL;Z831E334DA;SALDO Fatt.n. 876/GA  del 30/06/2017 Periodo di fornitura MAGGIO 2017 - C.C. 56014211/113 - SERVIZIO GAS - POD/PDR 43620000001046;28-08-2017;1034;0;4;1;Spese correnti;3;Acquisto di beni e servizi;2;Acquisto di servizi;5;Utenze e canoni;1;Telefonia fissa;2017-08-28;
265;9;"161,91";"569,17";METANIA SRL;Z831E334DA;SALDO Fatt.n. 1077/GA  del 28/07/2017 Periodo di fornitura GIUGNO 2017 - C.C. 56014211/113 - SERVIZIO GAS - POD/PDR 43620000001046;28-08-2017;1034;0;4;1;Spese correnti;3;Acquisto di beni e servizi;2;Acquisto di servizi;5;Utenze e canoni;1;Telefonia fissa;2017-08-28;
265;10;"227,41";"569,17";METANIA SRL;Z831E334DA;SALDO Fatt.n. 872/GA  del 30/06/2017 Periodo di fornitura MAGGIO 2017 - C.C. 56013286/113 - SERVIZIO GAS - POD/PDR 09060000005061;28-08-2017;1034;0;4;1;Spese correnti;3;Acquisto di beni e servizi;2;Acquisto di servizi;5;Utenze e canoni;1;Telefonia fissa;2017-08-28;
266;1;"3.511,66";"3.511,66";ECODEPURA SRL;5186888362;SALDO Fatt.n. 167  del 31/07/2017;28-08-2017;1031;0;43;1;Spese correnti;3;Acquisto di beni e servizi;2;Acquisto di servizi;99;Altri servizi;999;Altri servizi diversi n.a.c.;2017-08-28;
267;1;"1.212,12";"1.212,12";RUGGIERO EOLIA; ;SALDO Fatt.n. 2/PA  del 02/08/2017;28-08-2017;1058;0;45;1;Spese correnti;3;Acquisto di beni e servizi;2;Acquisto di servizi;99;Altri servizi;2;Altre spese legali;2017-08-28;
268;1;"3.050,00";"3.050,00";STUDIO TECNICO DI INGEGNERIA SERRICCHIO - MASTRONARDI;Z0119730C4;SALDO Fatt.n. FATTPA 1_17  del 22/05/2017;28-08-2017;3324;0;72;2;Spese in conto capitale;2;Investimenti fissi lordi e acquisto di terreni;1;Beni materiali;9;Beni immobili;8;Opere destinate al culto;2017-08-28;
269;1;"972,97";"29.429,64";ACP STUDIO TECNICO ASSOCIATO  ing. Adriano CARMOSINO;Z0F11586D9;SALDO Fatt.n. 5/PA  del 25/08/2017;28-08-2017;3610;0;73;2;Spese in conto capitale;3;Contributi agli investimenti;1;Contributi agli investimenti a Amministrazioni pubbliche;2;Contributi agli investimenti a Amministrazioni Locali;1;Contributi agli investimenti a Regioni e province autonome;2017-08-28;
269;2;"24.324,46";"29.429,64";ACP STUDIO TECNICO ASSOCIATO  ing. Adriano CARMOSINO;Z0F11586D9;ACCONTO Fatt.n. 5/PA  del 25/08/2017;28-08-2017;3610;0;73;2;Spese in conto capitale;3;Contributi agli investimenti;1;Contributi agli investimenti a Amministrazioni pubbliche;2;Contributi agli investimenti a Amministrazioni Locali;1;Contributi agli investimenti a Regioni e province autonome;2017-08-28;
269;3;"118,93";"29.429,64";ACP STUDIO TECNICO ASSOCIATO geom. Patrizio CARMOSINO;Z0F11586D9;SALDO Fatt.n. 6/PA  del 25/08/2017;28-08-2017;3610;0;73;2;Spese in conto capitale;3;Contributi agli investimenti;1;Contributi agli investimenti a Amministrazioni pubbliche;2;Contributi agli investimenti a Amministrazioni Locali;1;Contributi agli investimenti a Regioni e province autonome;2017-08-28;
269;4;"2.973,28";"29.429,64";ACP STUDIO TECNICO ASSOCIATO geom. Patrizio CARMOSINO;Z0F11586D9;ACCONTO Fatt.n. 6/PA  del 25/08/2017;28-08-2017;3610;0;73;2;Spese in conto capitale;3;Contributi agli investimenti;1;Contributi agli investimenti a Amministrazioni pubbliche;2;Contributi agli investimenti a Amministrazioni Locali;1;Contributi agli investimenti a Regioni e province autonome;2017-08-28;
269;5;"1.040,00";"29.429,64";carfagna barbara;Z0F11586D9;SALDO Fatt.n. 1/PA  del 21/08/2017;28-08-2017;3610;0;73;2;Spese in conto capitale;3;Contributi agli investimenti;1;Contributi agli investimenti a Amministrazioni pubbliche;2;Contributi agli investimenti a Amministrazioni Locali;1;Contributi agli investimenti a Regioni e province autonome;2017-08-28;
270;1;"80.104,20";"80.104,20";BAGNOLI ANTONIO;6525408906;SALDO Fatt.n. PA09/2016A  del 09/12/2016 LAVORI FINALIZZATI AL MIGLIORAMENTO ED EFFICIENZA DELLA RETE IDRICA COMUNALE. CODICE CUP I64H14000320002 - CIG 6525408906;28-08-2017;3610;0;73;2;Spese in conto capitale;3;Contributi agli investimenti;1;Contributi agli investimenti a Amministrazioni pubbliche;2;Contributi agli investimenti a Amministrazioni Locali;1;Contributi agli investimenti a Regioni e province autonome;2017-08-28;
271;1;"2.000,00";"2.000,00";COMUNE DI CASTELVERRINO; ;"AZIONI , ATTIVITA' ED INTERVENTI FINALIZZATI AL MIGLIORAMENTO DELL'EFFICIENZA DELLA RETE IDRICA COMUNALE compenso RUP";28-08-2017;3610;0;73;2;Spese in conto capitale;3;Contributi agli investimenti;1;Contributi agli investimenti a Amministrazioni pubbliche;2;Contributi agli investimenti a Amministrazioni Locali;1;Contributi agli investimenti a Regioni e province autonome;2017-08-28;
272;1;"216,00";"216,00";COMUNE DI CASTELVERRINO; ;OCDPC 280/2015- INTERVENTI PROTEZIONE CIVILE PER EVENTI STRAORDINARI METEOROLOGICI DEL 5/6 MARZO 2015- COMPENSO RUP;28-08-2017;3324;0;72;2;Spese in conto capitale;2;Investimenti fissi lordi e acquisto di terreni;1;Beni materiali;9;Beni immobili;8;Opere destinate al culto;2017-08-28;
273;1;"1.162,03";"1.162,03";PERSONALE DIVERSO; ;STIPENDI MESE DI: AGOSTO 17;28-08-2017;1001;0;0;1;Spese correnti;3;Acquisto di beni e servizi;2;Acquisto di servizi;1;Organi e incarichi istituzionali dell'amministrazione;1;Organi istituzionali dell'amministrazione - Indennit�;2017-08-28;
290;1;"145,00";"145,00";COMUNE DI POVIGLIO; ;RIVERSAMENTO TARI 2016;04-09-2017;2159;0;0;1;Spese correnti;3;Acquisto di beni e servizi;2;Acquisto di servizi;99;Altri servizi;999;Altri servizi diversi n.a.c.;2017-09-04;
291;1;"2.033,33";"2.033,33";EDELTRIBUTI SRLS;ZC01D72BFE;SALDO Fatt.n. FATTPA 63_17  del 29/06/2017;04-09-2017;1009;1;30;1;Spese correnti;3;Acquisto di beni e servizi;2;Acquisto di servizi;17;Servizi finanziari;999;Spese per servizi finanziari n.a.c.;2017-09-04;
292;1;"3.511,66";"3.511,66";ECODEPURA SRL;5186888362;SALDO Fatt.n. 191  del 31/08/2017;04-09-2017;1031;0;48;1;Spese correnti;3;Acquisto di beni e servizi;2;Acquisto di servizi;99;Altri servizi;999;Altri servizi diversi n.a.c.;2017-09-04;
293;1;"1.347,50";"1.347,50";ECODEPURA SRL;Z190634796;SALDO Fatt.n. 190  del 31/08/2017;04-09-2017;1718;0;47;1;Spese correnti;3;Acquisto di beni e servizi;2;Acquisto di servizi;15;Contratti di servizio pubblico;13;Contratti di servizio per la gestione del servizio idrico integrato;2017-09-04;
294;1;"4.977,60";"4.977,60";Conti Angelo;Z0F11586D9;SALDO Fatt.n. 3/E  del 30/08/2017 Prestazione professionale;04-09-2017;3610;0;73;2;Spese in conto capitale;3;Contributi agli investimenti;1;Contributi agli investimenti a Amministrazioni pubbliche;2;Contributi agli investimenti a Amministrazioni Locali;1;Contributi agli investimenti a Regioni e province autonome;2017-09-04;
295;1;"562,77";"1.125,54";BUCCIGROSSI FELICE; ;PAR FSC 2007/2013- RACCOLTA DIFFERENZIATA POTENZIAMENTO- SERVIZI SPAZZAMENTO- BORSA LAVORO MESE DI LUGLIO E AGOSTO;04-09-2017;47;0;77;1;Spese correnti;3;Acquisto di beni e servizi;2;Acquisto di servizi;9;Manutenzione ordinaria e riparazioni;8;Manutenzione ordinaria e riparazioni di beni immobili;2017-09-04;
295;2;"562,77";"1.125,54";BUCCIGROSSI FELICE; ;PAR FSC 2007/2013- RACCOLTA DIFFERENZIATA POTENZIAMENTO- SERVIZI SPAZZAMENTO- BORSA LAVORO MESE DI LUGLIO E AGOSTO;04-09-2017;47;0;77;1;Spese correnti;3;Acquisto di beni e servizi;2;Acquisto di servizi;9;Manutenzione ordinaria e riparazioni;8;Manutenzione ordinaria e riparazioni di beni immobili;2017-09-04;
296;1;"42,00";"42,00";CASSA DI PREVIDENZA E ASSISTENZA FORENSE; ;contributi CASSA FORENSE SINDACO PT SCIULLI COMUNE DI PESCOPENNATARO QUOTA CONTRIBUTO DI MATERITA' ANNO 2017 1 SEMESTRE;04-09-2017;1001;2;0;1;Spese correnti;3;Acquisto di beni e servizi;2;Acquisto di servizi;1;Organi e incarichi istituzionali dell'amministrazione;1;Organi istituzionali dell'amministrazione - Indennit�;2017-09-04;
298;1;"487,42";"487,42";ACP STUDIO TECNICO ASSOCIATO geom. Patrizio CARMOSINO;Z0F11586D9;SALDO Fatt.n. 6/PA  del 25/08/2017;04-09-2017;1031;0;50;1;Spese correnti;3;Acquisto di beni e servizi;2;Acquisto di servizi;99;Altri servizi;999;Altri servizi diversi n.a.c.;2017-09-04;
300;1;"167,77";"167,77";RUGGIERO EOLIA; ;SALDO Fatt.n. 2/PA  del 02/08/2017;04-09-2017;1058;0;49;1;Spese correnti;3;Acquisto di beni e servizi;2;Acquisto di servizi;99;Altri servizi;2;Altre spese legali;2017-09-04;
304;1;"1.162,03";"1.162,03";PERSONALE DIVERSO; ;STIPENDI MESE DI: SETTEMBRE 17;25-09-2017;1001;0;0;1;Spese correnti;3;Acquisto di beni e servizi;2;Acquisto di servizi;1;Organi e incarichi istituzionali dell'amministrazione;1;Organi istituzionali dell'amministrazione - Indennit�;2017-09-25;
